Workbook

Sheet Т—Ж
A1: Партнер может выбрать один или несколько форматов, при покупке пакета от 3х материалов действуют специальные условия. В стоимость входит подготовка материала, размещение и редакционное анонсирование. Маркировка материала обязательна.
A2: Формат | B2: Описание | C2: Прогноз охватов | D2: Цена, руб. до НДС | E2: Прогнозный CPU, руб. | F2: Сроки подготовки (со дня заключения договора), раб. дней
A3: Экспертная статья | B3: Статья с экспертом по теме. Рекламный блок и CTA в начале и в конце статьи | C3: 10000 | D3: =900000*1.2 -> 1080000 | E3: =D3/C3 -> 108 | F3: от 20
A4: Список | B4: Нативное описание преимуществ продукта в виде структурированных пунктов. CTA в конце материала | C4: 10000 | D4: =800000*1.2 -> 960000 | E4: 96 | F4: от 20
A5: Шорт | B5: Короткие, информативные карточки. CTA на одной из карточек | C5: 10000 | D5: 960000 | E5: 96 | F5: от 20
A7: Интерактивные спецпроекты
A8: Партнер может выбрать один или несколько форматов, при покупке пакета от 3х материалов действуют специальные условия. В стоимость входит подготовка материала, размещение и редакционное анонсирование. Маркировка материала обязательна.
A9: Формат | B9: Описание | C9: Прогноз охватов | D9: Цена, руб. до НДС | E9: Прогнозный CPU, руб. | F9: Сроки подготовки (со дня заключения договора), раб. дней
A10: Тест | B10: Опрос с вариантами ответов. Рекламный блок и CTA в тесте или результатах | C10: 10000 | D10: =1000000*1.2 -> 1200000 | E10: =D10/C10 -> 120 | F10: от 30
A11: Калькулятор | B11: Интерактивный формат для расчета выгоды продукта в цифрах с рекламным блоком и CTA | C11: 10000 | D11: =1200000*1.2 -> 1440000 | E11: 144 | F11: от 40
A12: Фичер | B12: Интерактивный формат под цели партнера, часто с игровой механикой | C12: 10000 | D12: 1440000 | E12: 144 | F12: от 40
A13: Спецпроект с T-Data | B13: Формат, разработанный совместно с T-Data. На снове обезличенной банковской информации готовится исследование с инфографикой | C13: 10000 | D13: от 1 100 000 | E13: =1100000/C13 -> 110 | F13: от 40
A14: Образовательный курс | B14: Формат помогает погрузить пользователя в тему и дать новые знания или навыки. Состоит из 3-10 уроков с заданиями, тестами и чек-листами | C14: 10000 | D14: от 1 800 000 | E14: =1800000/10000 -> 180 | F14: от 80
A15: Эксклюзивный спецпроект | B15: Формат, разработанный специально под цели партнера или возможностью совместить в себе несколько форматов | C15: Индивидуальное предложение по запросу от 2 200 000 руб.
A17: Соцсети
A18: Доступно при заказе спецпроекта. Партнер может выбрать один из каналов, либо все доступные соцсети. Пост с упоминанием партнера, маркировкой и переходом на сайт партнера.
A19: Соцсеть | B19: Описание | C19: Прогноз охватов | D19: Цена, руб. до НДС | E19: Прогнозный CPV, руб. | F19: Сроки подготовки (со дня заключения договора), раб. дней
A20: Telegram | B20: Пост в основном канале https://t.me/t_jrnl и тематическом канале со ссылкой на спецпроект и упоминанием партнера в тексте поста | C20: 15000 | D20: =100000*1.2 -> 120000 | E20: =D20/C20 -> 8 | F20: от 5
A21: ВК | B21: Пост в сообществе https://vk.com/t_jrnl со ссылкой на спецпроект и упоминанием партнера в тексте поста | C21: 5000 | D21: =50000*1.2 -> 60000 | E21: 12 | F21: от 5
A22: Одноклассники | B22: Пост в группе https://ok.ru/tjrnl со ссылкой на спецпроект и упоминанием партнера в тексте поста | C22: 5000 | D22: 60000 | E22: 12 | F22: от 5
A26: Баннерная реклама
A27: В блоке перечислен минимальный охват по каждому инструменту, при желании объем показов может быть увеличен под цели заказчика.
A28: Формат | B28: Описание | C28: Размер | D28: Устройство | E28: Прогноз охватов | F28: Прогноз показов | G28: Прогнозный CTR | H28: Прогноз кликов | I28: Единица закупки | J28: CPM, руб.кликаут, до НДС | K28: Сроки подготовки (со дня заключения договора), раб. дней
A29: Micro | B29: Баннер размещается: - в верхней части страницы, над хедером | C29: 760px x 105px | D29: Desktop | E29: 100 000 | F29: 120000 | G29: 0.0025 | H29: =F29*G29 -> 300 | I29: 1000 показов | J29: 400 | K29: от 14
C30: 100% x 120px | D30: Mobile | E30: 400 000 | F30: 480000 | H30: =F30*G29 -> 1200
A31: Mini баннер | B31: Баннер размещается: - после автора в начале материала | C31: 760px х 180px | D31: Desktop | E31: 100 000 | F31: 120000 | G31: 0.0015 | H31: =F31*G31 -> 180
C32: 335px х 185px | D32: Mobile | E32: 400 000 | F32: 480000 | H32: =F32*G31 -> 720
A33: Medium баннер | B33: Баннер размещается: - внутри текста материала - в конце материала - в конце страницы последним блоком | C33: 760px х 220px | D33: Desktop | E33: 100 000 | F33: 120000 | G33: 0.002 | H33: =F33*G33 -> 240
C34: 335px x 390px | D34: Mobile | E34: 400 000 | F34: 480000 | H34: =F34*G33 -> 960
A35: Large баннер | B35: Баннер размещается: - внутри текста материала - после блока комментариев | C35: 760px x 235px | D35: Desktop | E35: 100 000 | F35: 120000 | G35: 0.002 | H35: =F35*G35 -> 240
C36: 375px x 520px | D36: Mobile | E36: 400 000 | F36: 480000 | H36: =F36*G35 -> 960
A40: Реклама в подкастах
A41: Цены указаны за рекламную вставку длиной от 30 секунд до 1,5 минут. По запросу можно увеличить время интеграции, сделать совместный выпуск или сезон.
A42: Подкаст | B42: Описание | C42: ЦА: пол* | D42: ЦА: возраст* | E42: Целевая аудитория: интересы* | F42: Прогноз прослушиваний выпуска спустя месяц | G42: Цена, руб. до НДС | H42: Стоимость прослушивания, руб. без НДС | I42: Сроки подготовки (со дня заключения договора), раб. дней
A43: План Б | B43: Двое ведущих ищут путь к богатству | C43: 50% мужчин и 50% женщин | D43: 18-24 года — 18% 25-34 года — 43% 35-44 года — 22% | E43: лайфстайл, личные финансы, работа и карьера, ИТ, эмиграция, психология, бизнес и инвестиции | F43: 25000 | G43: =200000*1.2 -> 240000 | H43: =G43/F43 -> 9.6 | I43: от 14
A44: Прием | B44: Разговорное шоу про медицину и здоровье | C44: 28% мужчин и 72% женщин | D44: 18-24 года — 20% 25-34 года — 52% 35-44 года — 13% | E44: медицина, ЗОЖ, красота, велнесс, фитнес, наука, семья и дети, ментальное здоровье | F44: 10000 | G44: =80000*1.2 -> 96000 | H44: 9.6
A45: Схема | B45: Тру-крайм про современное мошенничество | C45: 52% мужчин и 48% женщин | D45: 18-24 года — 19% 25-34 года — 47% 35-44 года — 18% | E45: тру-крайм, история, документалистика, финансовая безопасность, ИТ | F45: 12000 | G45: =100000*1.2 -> 120000 | H45: 10
A46: Ну как там с деньгами? | B46: Разбор бюджета и финансовых целей гостей | C46: 47% мужчин и 53% женщин | D46: 18-24 года — 28% 25-34 года — 50% 35-44 года — 11% | E46: финансовая грамотность, юмор, работа и карьера, инвестиции, психология, продуктивность, экономия | F46: 7000 | G46: =60000*1.2 -> 72000 | H46: 10.28571429
A47: В курсе рубля | B47: Эксперты про главное в экономике | C47: 58% мужчин и 42% женщин | D47: 18-24 года — 17% 25-34 года — 41% 35-44 года — 22% | E47: экономика, новости, инвестиции, бизнес и работа, политика | F47: 12000 | G47: =150000*1.2 -> 180000 | H47: 15
C49: *по данным Яндекс Музыки за период с 21.02.2024 по 21.02.2025
